[Event "Dutch Meesterklasse 2024-25"]
[Site "Netherlands"]
[Date "2024.09.22"]
[Round "1.9"]
[White "Van Haastert, Edwin"]
[Black "Albers, Sasa"]
[Result "1-0"]
[ECO "B12"]
[WhiteElo "2412"]
[BlackElo "2264"]
[Annotator "TA"]
[PlyCount "69"]
[EventDate "2024.09.21"]
[EventType "team-tourn"]
[EventCountry "NED"]
[SourceTitle "playchess.com"]
[Source "ChessBase"]
[SourceQuality "1"]
[TimeControl "40/5400+30:1800+30"]

{[%evp 9,69,-4,-1,0,0,2,0,-16,-8,0,0,7,0,-9,0,-11,33,35,43,43,71,71,50,20,103,71,97,87,110,103,103,111,105,108,111,118,216,217,218,200,291,256,299,277,304,175,200,39,228,0,1949,1546,29974,29975,29974,29975,29979,29979,29983,29984,29984,-316]} 1. e4 {[%emt 0:00:03]} c6 {[%emt 0:00:10]} 2. d4 {[%emt 0:00:05]} d5 {[%emt 0:00:04]} 3. e5 {[%emt 0:00:04]} c5 {[%emt 0:00:58]} 4. Nf3 {[%emt 0:00:08]} cxd4 {[%emt 0:00:04]} 5. Qxd4 {[%emt 0:00:05]} Nc6 {[%emt 0:00:06][%cal Bb8c6,Bc6b4,Bb4d3][%mdl 32]} 6. Qf4 {[%emt 0:00:05]} e6 {[%emt 0:00:03]} 7. Bd3 {[%emt 0:00:58]} Nb4 {[%emt 0:00:06]} 8. Nc3 {[%emt 0:00:06] The position is equal.} Nxd3+ {[%emt 0:00:17]} 9. cxd3 {[%emt 0:00:05]} Bd7 {[%emt 0:00:05]} 10. Bd2 {[%emt 0:01:51]} Ne7 {[%emt 0:02:12]} 11. h4 $40 {[%emt 0:01:03][%mdl 128] White attacks.} (11. Ng5 $5 Nf5 $8 12. g4 $11) 11... h5 {[%emt 0:00:15]} 12. Ne2 {[%emt 0:01:27]} (12. Ng5 $5 Nf5 $8 13. O-O $11) 12... Nf5 {[%emt 0:04:25]} 13. Ng3 {[%emt 0:00:32]} Nxg3 {[%emt 0:08:28]} 14. Qxg3 {[%emt 0:01:27]} Qb6 {[%emt 0:05:56]} 15. O-O $1 {[%emt 0:08:32]} Rc8 {[%emt 0:03:10][%cal Ob6b5]} 16. Bc3 {[%emt 0:12:43]} Rh6 {[%emt 0:03:19]} (16... Qa6 $11) 17. Qf4 {[%emt 0:04:36] Threatens to win with Ng5.} Be7 {[%emt 0:03:18]} 18. Bd4 {[%emt 0:12:21]} Qa6 {[%emt 0:20:10]} 19. Ng5 {[%emt 0:01:33]} Bxg5 {[%emt 0:04:10]} 20. hxg5 {[%emt 0:00:10]} (20. Qxg5 $6 Qxd3 21. Be3 (21. Bxa7 Rg6 $15) 21... Qh7 $11) 20... Rh8 {[%emt 0:00:23]} 21. Qe3 {[%emt 0:11:05]} b6 {[%emt 0:03:51][%cal Bb7b6,Bb6a5][%mdl 32] [#]} 22. a4 $1 {[%emt 0:01:44][%mdl 512]} Rc7 {[%emt 0:03:07] [#]} (22... Kf8 $16 23. b4 Bxa4) (22... Qb7 23. b4) 23. a5 $1 $18 {[%emt 0:00:28][%mdl 512]} bxa5 {[%emt 0:01:47]} 24. Rfc1 {[%emt 0:01:47] Black is weak on the dark squares} Rb7 {[%emt 0:07:11]} (24... Rxc1+ $142 25. Qxc1 (25. Rxc1 Qb7 $18) 25... h4) 25. Bc5 {[%emt 0:04:29]} h4 {[%emt 0:05:16]} 26. Ra3 {[%emt 0:08:50]} h3 {[%emt 0:04:35]} 27. Bd6 {[%emt 0:04:59]} (27. gxh3 d4 28. Bxd4 (28. Qxd4 Rxh3 29. Qg4 Rh8 $11) 28... Rh4 $18) (27. d4 $142) 27... hxg2 {[%emt 0:01:42] [#] ...d4 would now be deadly.} 28. Kxg2 $2 {[%emt 0:23:14]} ({White must play} 28. d4 $1 $18 Rb6 29. Kxg2 Rxd6 30. exd6 Qxd6 31. Qg3 (31. Rxa5 $2 Qh2+ 32. Kf1 Rh3 $19) 31... Qxg3+ 32. Kxg3) 28... Rh5 $2 {[%emt 0:06:47] [#]} (28... Qb6 $1 $14) 29. Rac3 $2 {[%emt 0:00:00]} (29. d4 $1 $18) 29... f6 $2 {[%emt 0:02:43][%mdl 8192]} (29... Rxb2 $2 {perishes.} 30. Qf4 Qb6 (30... d4 $2 31. Rc7 $18) 31. Rc8+ Bxc8 32. Rxc8+ Kd7 33. Rc5 $18 (33. Qxf7+ $2 Kxc8 34. Qxe6+ Kb7 $19)) (29... d4 30. Qxd4 Rxb2 (30... Rxg5+ 31. Kf1 $16) 31. Qf4 Qb7+ 32. Kg3) (29... Qb6 $11) 30. gxf6 {[%emt 0:00:00]} gxf6 {[%emt 0:00:01]} 31. Qf3 {[%emt 0:00:00] White mates.} Rg5+ {[%emt 0:02:56]} 32. Kf1 {[%emt 0:00:00]} Rxb2 {[%emt 0:00:20]} 33. Qh3 {[%emt 0:00:00]} ({Not} 33. Qxf6 Rxf2+ 34. Kxf2 (34. Qxf2 Rf5 $11) 34... Rf5+ $14) 33... fxe5 {[%emt 0:02:43] [#]} 34. Qh7 $1 {[%emt 0:00:00][%csl Gd6][%cal Rh7e7]} Qxd6 {[%emt 0:03:38] [#]} 35. Rc8+ $1 {[%emt 0:00:00][%mdl 33280] Weighted Error Value: White=0.27 (precise) /Black=0.25 (precise) .  Loses game:     	---       	Black=2      Missed win:     	White=2     	---        Mistake:       	White=1     	Black=3      Inaccurate:     	White=2     	Black=3      OK:         	White=8     	Black=8      Best:        	White=2     	Black=1      Strong:       	White=1     	---       . Loss on time!?} 1-0

[Event "Dutch Meesterklasse 2024-25"]
[Site "Netherlands"]
[Date "2024.09.22"]
[Round "1.9"]
[White "Pham, Khoi"]
[Black "Van de Griendt, Jan Willem"]
[Result "0-1"]
[ECO "D35"]
[WhiteElo "2309"]
[BlackElo "2365"]
[Annotator "RC"]
[PlyCount "138"]
[EventDate "2024.09.21"]
[EventType "team-tourn"]
[EventCountry "NED"]
[SourceTitle "playchess.com"]
[Source "ChessBase"]
[SourceQuality "1"]
[TimeControl "40/5400+30:1800+30"]

1. d4 {[%emt 0:00:02]} Nf6 {[%emt 0:00:58]} 2. c4 {[%emt 0:00:07]} e6 {[%emt 0:02:08]} 3. Nc3 {[%emt 0:00:21]} d5 {[%emt 0:00:45]} 4. cxd5 {[%emt 0:00:56]} exd5 {[%emt 0:00:07]} 5. Bg5 {[%emt 0:00:05]} Be7 {[%emt 0:00:26]} 6. e3 {[%emt 0:00:50]} h6 {[%emt 0:01:20]} 7. Bh4 {[%emt 0:00:14]} Bg4 {[%emt 0:01:33]} 8. Qc2 {[%emt 0:04:01]} O-O {[%emt 0:07:49]} 9. h3 {[%emt 0:00:45]} Be6 {[%emt 0:01:06]} 10. Bd3 {[%emt 0:02:33]} c5 {[%emt 0:03:32]} 11. Nf3 {[%emt 0:15:07]} Nc6 {[%emt 0:11:43]} 12. a3 {[%emt 0:03:07]} Re8 {[%emt 0:17:09]} 13. O-O {[%emt 0:02:06]} cxd4 {[%emt 0:01:58]} 14. exd4 {[%emt 0:00:14]} Ne4 {[%emt 0:05:44]} 15. Bxe7 {[%emt 0:15:22]} Rxe7 {[%emt 0:00:26]} 16. Rfe1 {[%emt 0:02:59]} f5 {[%emt 0:02:45]} 17. Rac1 {[%emt 0:09:51]} Rc8 {[%emt 0:06:03]} 18. Qa4 {[%emt 0:05:17]} Qb6 {[%emt 0:03:49]} 19. Qb5 {[%emt 0:03:33]} Qxb5 {[%emt 0:11:42]} 20. Bxb5 {[%emt 0:00:06]} Rec7 {[%emt 0:02:08]} 21. Ne2 {[%emt 0:10:19]} Na5 {[%emt 0:06:25]} 22. Rxc7 {[%emt 0:05:05]} Rxc7 {[%emt 0:00:03]} 23. Nf4 {[%emt 0:00:14]} Bf7 {[%emt 0:00:43]} 24. Ne5 {[%emt 0:00:51]} Nf6 {[%emt 0:07:53]} 25. Nxf7 {[%emt 0:04:23]} Kxf7 {[%emt 0:00:16]} 26. Re5 {[%emt 0:00:09]} Rc1+ {[%emt 0:01:44]} 27. Kh2 {[%emt 0:00:05]} Nc6 {[%emt 0:00:31]} 28. Bxc6 {[%emt 0:02:16]} bxc6 {[%emt 0:00:05]} 29. Nd3 {[%emt 0:06:31]} Rc4 {[%emt 0:00:13]} 30. Re2 {[%emt 0:01:58]} Nd7 {[%emt 0:00:05]} 31. Nb4 {[%emt 0:02:12]} a5 {[%emt 0:01:32]} 32. Nc2 {[%emt 0:00:26]} f4 {[%emt 0:00:10]} 33. Rd2 {[%emt 0:01:15]} Nf6 {[%emt 0:00:18]} 34. f3 {[%emt 0:00:45]} Nh5 {[%emt 0:00:32]} 35. Kg1 {[%emt 0:01:57]} Ng3 {[%emt 0:00:32]} 36. Kf2 {[%emt 0:00:10]} g5 {[%emt 0:01:11]} 37. Ke1 {[%emt 0:00:47]} Ke6 {[%emt 0:01:52]} 38. Kd1 {[%emt 0:00:13]} Kd6 {[%emt 0:00:42]} 39. Rd3 {[%emt 0:01:35]} a4 {[%emt 0:00:33]} 40. Kd2 {[%emt 0:01:07]} Nf1+ {[%emt 0:00:51]} 41. Kd1 {[%emt 0:01:37]} c5 {[%emt 0:09:15]} 42. dxc5+ {[%emt 0:05:59]} Kxc5 {[%emt 0:00:13]} 43. b3 {[%emt 0:00:36]} axb3 {[%emt 0:00:08]} 44. Rxb3 {[%emt 0:00:05]} d4 {[%emt 0:00:47]} 45. Ne1 {[%emt 0:02:14]} Ra4 {[%emt 0:02:51]} 46. Ke2 {[%emt 0:04:53]} Kc4 {[%emt 0:01:32]} 47. Rb8 {[%emt 0:04:01]} Ng3+ {[%emt 0:06:01]} 48. Kd2 {[%emt 0:00:07]} Rxa3 {[%emt 0:00:17]} 49. Rc8+ {[%emt 0:01:18]} Kd5 {[%emt 0:02:17]} 50. Nc2 {[%emt 0:01:02]} Ra4 {[%emt 0:02:16]} 51. Rd8+ {[%emt 0:02:54]} Ke5 {[%emt 0:00:10]} 52. Re8+ {[%emt 0:00:05]} Kf6 {[%emt 0:00:26]} 53. Kd3 {[%emt 0:00:20]} Nf5 {[%emt 0:02:09]} 54. Rb8 {[%emt 0:01:43]} Ra2 {[%emt 0:01:13]} 55. Rb6+ {[%emt 0:00:54]} Kg7 {[%emt 0:00:06]} 56. Nxd4 {[%emt 0:03:25]} Nxd4 {[%emt 0:00:59]} 57. Kxd4 {[%emt 0:00:06]} Rxg2 {[%emt 0:00:05]} 58. Ke4 {[%emt 0:04:27]} Rh2 {[%emt 0:01:01]} 59. Kf5 {[%emt 0:00:03]} Rxh3 {[%emt 0:00:08]} 60. Rb7+ {[%emt 0:00:15]} Kf8 {[%emt 0:00:07]} 61. Rh7 {[%emt 0:01:06]} Rxf3 {[%emt 0:01:47]} 62. Rxh6 {[%emt 0:00:25]} Rg3 {[%emt 0:00:14]} 63. Ra6 {[%emt 0:02:40]} Ke7 {[%emt 0:03:04]} 64. Re6+ {[%emt 0:01:11]} Kd7 {[%emt 0:02:14]} 65. Re1 {[%emt 0:00:54]} f3 {[%emt 0:00:13]} 66. Rd1+ {[%emt 0:00:28]} Ke7 {[%emt 0:01:04]} 67. Re1+ {[%emt 0:00:09]} Kf7 {[%emt 0:00:49]} 68. Ra1 {[%emt 0:00:42]} f2 {[%emt 0:00:41]} 69. Rf1 {[%emt 0:00:10]} Rg2 {[%emt 0:00:05]} 0-1

[Event "Dutch Meesterklasse 2024-25"]
[Site "Netherlands"]
[Date "2024.09.22"]
[Round "1.10"]
[White "Kokje, Joris"]
[Black "Schoorl, Rob"]
[Result "1-0"]
[ECO "A65"]
[WhiteElo "2291"]
[BlackElo "2340"]
[Annotator "RC"]
[PlyCount "81"]
[EventDate "2024.09.21"]
[EventType "team-tourn"]
[EventCountry "NED"]
[SourceTitle "playchess.com"]
[Source "ChessBase"]
[SourceQuality "1"]
[TimeControl "40/5400+30:1800+30"]

1. d4 {[%emt 0:00:03]} Nf6 {[%emt 0:00:11]} 2. c4 {[%emt 0:00:09]} c5 {[%emt 0:00:07]} 3. d5 {[%emt 0:00:09]} g6 {[%emt 0:00:17]} 4. Nc3 {[%emt 0:00:28]} Bg7 {[%emt 0:00:08]} 5. e4 {[%emt 0:00:39]} d6 {[%emt 0:00:08]} 6. Nge2 {[%emt 0:01:21]} O-O {[%emt 0:01:25]} 7. Ng3 {[%emt 0:01:38]} e6 {[%emt 0:01:03]} 8. Be2 {[%emt 0:01:18]} exd5 {[%emt 0:01:23]} 9. cxd5 {[%emt 0:00:15]} h5 {[%emt 0:02:10]} 10. Bg5 {[%emt 0:02:13]} a6 {[%emt 0:06:19]} 11. a4 {[%emt 0:01:38]} Nbd7 {[%emt 0:00:07]} 12. O-O {[%emt 0:01:30]} Qc7 {[%emt 0:11:24]} 13. Qd2 {[%emt 0:02:24]} Rb8 {[%emt 0:05:35]} 14. Ra3 {[%emt 0:19:19]} c4 {[%emt 0:05:53]} 15. Bh6 {[%emt 0:09:44]} h4 {[%emt 0:21:44]} 16. Bxg7 {[%emt 0:06:06]} Kxg7 {[%emt 0:00:21]} 17. Nb5 {[%emt 0:08:31]} Qd8 {[%emt 0:08:15]} 18. Nf5+ {[%emt 0:06:54]} gxf5 {[%emt 0:01:20]} 19. Qg5+ {[%emt 0:01:07]} Kh8 {[%emt 0:00:08]} 20. Nxd6 {[%emt 0:01:21]} Ne5 {[%emt 0:03:53]} 21. f4 {[%emt 0:03:31]} Qxd6 {[%emt 0:04:04]} 22. Qxh4+ {[%emt 0:08:47]} Nh7 {[%emt 0:11:47]} 23. fxe5 {[%emt 0:02:42]} Qxe5 {[%emt 0:01:25]} 24. Rh3 {[%emt 0:02:48]} Qg7 {[%emt 0:00:14]} 25. Qf4 {[%emt 0:11:04]} Rg8 {[%emt 0:03:43]} 26. Rf2 {[%emt 0:01:18]} Bd7 {[%emt 0:01:07]} 27. e5 {[%emt 0:02:19]} Rbe8 {[%emt 0:02:23]} 28. Re3 {[%emt 0:02:08]} b5 {[%emt 0:01:46]} 29. Qd4 {[%emt 0:00:58]} Bc8 {[%emt 0:02:28]} 30. Bf1 {[%emt 0:00:37]} Ng5 {[%emt 0:02:29]} 31. Rf4 {[%emt 0:00:29]} Qg6 {[%emt 0:01:11]} 32. Rg3 {[%emt 0:01:11]} Rg7 {[%emt 0:01:19]} 33. Qe3 {[%emt 0:00:58]} Qh5 {[%emt 0:00:27]} 34. Be2 {[%emt 0:00:38]} Qh6 {[%emt 0:00:39]} 35. Qd4 {[%emt 0:00:34]} Kg8 {[%emt 0:00:22]} 36. Rh4 {[%emt 0:00:25]} Qg6 {[%emt 0:00:39]} 37. Rh5 {[%emt 0:01:01]} f4 {[%emt 0:00:34]} 38. Rgxg5 {[%emt 0:00:15]} Qb1+ {[%emt 0:00:30]} 39. Bf1 {[%emt 0:00:21]} f3 {[%emt 0:00:29]} 40. Rxg7+ {[%emt 0:00:41]} Kxg7 {[%emt 0:00:02]} 41. Rg5+ {[%emt 0:01:57]} 1-0

[Event "Dutch Meesterklasse 2024-25"]
[Site "Netherlands"]
[Date "2024.09.22"]
[Round "1.10"]
[White "Rijnaarts, Sjef"]
[Black "Roobol, Martin"]
[Result "1-0"]
[ECO "C95"]
[WhiteElo "2263"]
[BlackElo "2254"]
[Annotator "RC"]
[PlyCount "93"]
[EventDate "2024.09.21"]
[EventType "team-tourn"]
[EventCountry "NED"]
[SourceTitle "playchess.com"]
[Source "ChessBase"]
[SourceQuality "1"]
[TimeControl "40/5400+30:1800+30"]

1. e4 {[%emt 0:00:09]} e5 {[%emt 0:00:12]} 2. Nf3 {[%emt 0:01:17]} Nc6 {[%emt 0:00:07]} 3. Bb5 {[%emt 0:00:20]} a6 {[%emt 0:00:14]} 4. Ba4 {[%emt 0:00:18]} Nf6 {[%emt 0:00:47]} 5. O-O {[%emt 0:00:44]} Be7 {[%emt 0:00:53]} 6. Re1 {[%emt 0:01:44]} b5 {[%emt 0:01:41]} 7. Bb3 {[%emt 0:00:24]} d6 {[%emt 0:00:13]} 8. c3 {[%emt 0:04:25]} O-O {[%emt 0:00:45]} 9. h3 {[%emt 0:05:07]} Nb8 {[%emt 0:01:59]} 10. d4 {[%emt 0:08:07]} Nbd7 {[%emt 0:00:50]} 11. Nbd2 {[%emt 0:00:49]} Bb7 {[%emt 0:00:28]} 12. Bc2 {[%emt 0:01:15]} Re8 {[%emt 0:02:13]} 13. Nf1 {[%emt 0:04:12]} Bf8 {[%emt 0:01:38]} 14. Ng3 {[%emt 0:00:14]} g6 {[%emt 0:04:18]} 15. a4 {[%emt 0:05:06]} c5 {[%emt 0:05:02]} 16. d5 {[%emt 0:01:32]} c4 {[%emt 0:02:55]} 17. Bg5 {[%emt 0:01:42]} h6 {[%emt 0:08:58]} 18. Be3 {[%emt 0:00:14]} Nc5 {[%emt 0:00:27]} 19. Qd2 {[%emt 0:03:17]} Kh7 {[%emt 0:02:02]} 20. Ra3 {[%emt 0:01:18]} Qc7 {[%emt 0:06:07]} 21. Nh2 {[%emt 0:08:00]} bxa4 {[%emt 0:05:22]} 22. Qe2 {[%emt 0:04:04]} a5 {[%emt 0:06:23]} 23. Qxc4 {[%emt 0:01:29]} Ba6 {[%emt 0:00:22]} 24. Qa2 {[%emt 0:00:14]} Nfd7 {[%emt 0:09:26]} 25. Bxa4 {[%emt 0:06:22]} Nxa4 {[%emt 0:06:57]} 26. Rxa4 {[%emt 0:00:07]} Bb5 {[%emt 0:01:42]} 27. Ra3 {[%emt 0:00:06]} a4 {[%emt 0:00:59]} 28. Nf3 {[%emt 0:08:55]} Nc5 {[%emt 0:05:01]} 29. Nd2 {[%emt 0:07:11]} Rab8 {[%emt 0:00:14]} 30. c4 {[%emt 0:07:46]} Bd7 {[%emt 0:00:20]} 31. Rc1 {[%emt 0:02:03]} Rb4 {[%emt 0:06:51]} 32. b3 {[%emt 0:05:25]} axb3 {[%emt 0:07:37]} 33. Nxb3 {[%emt 0:00:06]} Nxb3 {[%emt 0:03:45]} 34. Rxb3 {[%emt 0:00:06]} Rxc4 {[%emt 0:00:07]} 35. Rcb1 {[%emt 0:00:11]} Rc2 {[%emt 0:05:11]} 36. Qa1 {[%emt 0:00:11]} Bc8 {[%emt 0:03:10]} 37. Ra3 {[%emt 0:00:36]} Kg8 {[%emt 0:01:23]} 38. Ra7 {[%emt 0:00:28]} Qc4 {[%emt 0:00:16]} 39. Rb6 {[%emt 0:04:23]} h5 {[%emt 0:01:50]} 40. Qd1 {[%emt 0:00:38]} Rc3 {[%emt 0:00:58]} 41. Nxh5 {[%emt 0:37:51]} Be7 {[%emt 0:25:24]} 42. Qf3 {[%emt 0:00:00]} gxh5 {[%emt 0:02:29]} 43. Rc6 {[%emt 0:00:00]} Qd3 {[%emt 0:01:34]} 44. Rxc3 {[%emt 0:00:00]} Qxc3 {[%emt 0:00:02]} 45. Rxe7 {[%emt 0:00:00]} Rxe7 {[%emt 0:00:10]} 46. Qf6 {[%emt 0:00:00]} Kf8 {[%emt 0:03:22]} 47. Qh8# {[%emt 0:05:34]} 1-0

[Event "Dutch Meesterklasse 2024-25"]
[Site "Netherlands"]
[Date "2024.10.12"]
[Round "2.1"]
[White "Warmerdam, Max"]
[Black "Ernst, Sipke"]
[Result "1/2-1/2"]
[ECO "A13"]
[WhiteElo "2653"]
[BlackElo "2512"]
[Annotator "TA"]
[PlyCount "83"]
[EventDate "2024.09.21"]
[EventType "team-tourn"]
[EventCountry "NED"]
[SourceTitle "playchess.com"]
[Source "ChessBase"]
[SourceQuality "1"]
[TimeControl "40/5400+30:1800+30"]

{[%evp 9,83,0,0,-7,31,19,56,0,17,7,19,21,20,10,12,-10,0,0,22,22,12,14,25,-11,0,0,0,-8,-10,-4,23,-27,14,0,31,31,17,0,44,46,40,0,15,21,7,16,24,-5,0,0,21,-7,0,-2,0,0,0,0,18,0,18,0,0,0,0,0,0,0,0,0,0,0,0,-2191,34,-133]} 1. c4 {[%emt 0:00:14]} e6 {[%emt 0:03:06]} 2. g3 {[%emt 0:01:03]} g6 {[%emt 0:02:04]} 3. Bg2 {[%emt 0:01:44]} Bg7 {[%emt 0:00:05]} 4. Nf3 {[%emt 0:05:31]} d5 {[%emt 0:04:03]} 5. Qc2 {[%emt 0:09:17]} d4 {[%emt 0:01:03]} 6. d3 {[%emt 0:01:47]} Ne7 {[%emt 0:01:13]} 7. b4 {[%emt 0:01:30]} c5 {[%emt 0:01:18]} 8. b5 {[%emt 0:04:09]} (8. bxc5 $14 Na6 9. O-O) 8... Nd7 {[%emt 0:05:35]} 9. a4 {[%emt 0:06:03]} a5 {[%emt 0:00:28]} 10. Bb2 {[%emt 0:04:07]} Nf5 {[%emt 0:08:53]} 11. Nbd2 {[%emt 0:01:44]} h5 {[%emt 0:03:21]} 12. h3 {[%emt 0:03:23]} Rb8 {[%emt 0:04:09]} 13. Ne4 {[%emt 0:07:04]} Qc7 {[%emt 0:09:57] Inhibits e3.} 14. O-O-O {[%emt 0:07:58]} b6 {[%emt 0:09:23]} 15. Kb1 {[%emt 0:15:47][%cal Oe2e3]} Bb7 {[%emt 0:02:07]} 16. Nfg5 {[%emt 0:05:13]} Kf8 {[%emt 0:04:21]} 17. Rhg1 {[%emt 0:01:16]} Re8 {[%emt 0:05:58]} 18. Nd2 {[%emt 0:01:34]} Bxg2 {[%emt 0:02:01]} 19. Rxg2 {[%emt 0:00:03]} Nd6 {[%emt 0:08:46]} 20. Ngf3 {[%emt 0:01:13]} (20. e3 $142) 20... Nf5 {[%emt 0:03:24]} 21. Re1 {[%emt 0:00:30]} Kg8 {[%emt 0:05:21]} 22. Rgg1 {[%emt 0:00:27]} Rd8 {[%emt 0:00:41]} 23. Rh1 {[%emt 0:03:29]} Nf8 {[%emt 0:02:47][%cal Bd7f8,Bf8e6,Be6f4][%mdl 32]} 24. g4 {[%emt 0:00:56]} Nd6 {[%emt 0:00:16]} 25. e3 {[%emt 0:00:46][%cal Re3d4]} hxg4 {[%emt 0:02:23]} 26. hxg4 {[%emt 0:00:05] Black must now prevent Rxh8+.} Rxh1 {[%emt 0:00:02]} 27. Rxh1 {[%emt 0:00:05]} e5 {[%emt 0:00:03]} 28. Qc1 {[%emt 0:02:02]} Ne6 {[%emt 0:05:08]} 29. e4 {[%emt 0:05:40]} Qe7 {[%emt 0:01:36]} 30. Qg1 {[%emt 0:00:21]} Nf4 {[%emt 0:02:00]} 31. Kc2 {[%emt 0:00:11]} Qe6 {[%emt 0:00:29]} 32. g5 {[%emt 0:02:55]} Kf8 {[%emt 0:01:49]} 33. Rh4 {[%emt 0:00:38]} Kg8 {[%emt 0:00:48]} 34. Ne1 {[%emt 0:01:15]} Rf8 {[%emt 0:00:12]} 35. Rh1 {[%emt 0:01:32]} f5 {[%emt 0:00:21] [#] Strongly threatening ...fxe4.} 36. gxf6 {[%emt 0:00:06]} Rxf6 {[%emt 0:01:04]} 37. Qg3 {[%emt 0:02:31]} Nh5 {[%emt 0:00:30]} 38. Qg2 {[%emt 0:01:01]} Nf4 {[%emt 0:00:34]} 39. Qg3 {[%emt 0:00:56]} Nh5 {[%emt 0:00:04]} 40. Qg2 {[%emt 0:00:04]} Nf4 {[%emt 0:01:14]} 41. Nef3 $2 {[%emt 0:18:51][%mdl 8192] [#]} Rf8 $2 ({Better is} 41... Nxg2 $19 42. Kb3 Nf7 (42... Nf4 $2 43. Ne1 $19)) 42. Qg1 $2 {[%emt 0:00:13] Weighted Error Value: White=0.26 (precise) /Black=0.21 (precise) .  Loses game:     	White=1     	---        Missed win:     	---       	Black=1      Mistake:       	White=3     	---        Inaccurate:     	White=4     	Black=6      OK:         	White=15    	Black=13     Best:        	White=1     	---} (42. Qf1 $1 $14 {was the only good move.}) 1/2-1/2

[Event "Dutch Meesterklasse 2024-25"]
[Site "Netherlands"]
[Date "2024.10.12"]
[Round "2.1"]
[White "De Winter, Arthur"]
[Black "Van Dael, Siem"]
[Result "1-0"]
[ECO "C72"]
[WhiteElo "2435"]
[BlackElo "2279"]
[Annotator "RC"]
[PlyCount "97"]
[EventDate "2024.09.21"]
[EventType "team-tourn"]
[EventCountry "NED"]
[SourceTitle "playchess.com"]
[Source "ChessBase"]
[SourceQuality "1"]
[TimeControl "40/5400+30:1800+30"]

1. e4 {[%emt 0:00:04]} e5 {[%emt 0:09:19]} 2. Nf3 {[%emt 0:00:08]} Nc6 {[%emt 0:00:03]} 3. Bb5 {[%emt 0:00:14]} a6 {[%emt 0:00:10]} 4. Ba4 {[%emt 0:00:02]} d6 {[%emt 0:00:06]} 5. O-O {[%emt 0:00:08]} Bg4 {[%emt 0:00:03]} 6. h3 {[%emt 0:03:09]} h5 {[%emt 0:06:22]} 7. Bxc6+ {[%emt 0:04:22]} bxc6 {[%emt 0:00:06]} 8. d4 {[%emt 0:00:25]} Qf6 {[%emt 0:02:01]} 9. dxe5 {[%emt 0:33:55]} dxe5 {[%emt 0:02:01]} 10. hxg4 {[%emt 0:03:18]} hxg4 {[%emt 0:00:07]} 11. Bg5 {[%emt 0:00:27]} Qe6 {[%emt 0:03:36]} 12. Nh2 {[%emt 0:06:18]} g3 {[%emt 0:02:49]} 13. Ng4 {[%emt 0:03:20]} Bc5 {[%emt 0:13:32]} 14. Qf3 {[%emt 0:11:30]} Qg6 {[%emt 0:01:18]} 15. Qxg3 {[%emt 0:02:39]} Qxg5 {[%emt 0:01:54]} 16. Qxe5+ {[%emt 0:00:09]} Qxe5 {[%emt 0:00:13]} 17. Nxe5 {[%emt 0:00:03]} Rd8 {[%emt 0:05:14]} 18. Nc3 {[%emt 0:10:30]} Rd6 {[%emt 0:06:08]} 19. Rfd1 {[%emt 0:05:40]} Rf6 {[%emt 0:03:06]} 20. Nd3 {[%emt 0:01:09]} Bd4 {[%emt 0:01:33]} 21. Ne2 {[%emt 0:06:37]} Bb6 {[%emt 0:06:36]} 22. c4 {[%emt 0:01:07]} Rfh6 {[%emt 0:00:06]} 23. g3 {[%emt 0:00:44]} Rh5 {[%emt 0:14:24]} 24. Rac1 {[%emt 0:01:30]} a5 {[%emt 0:07:25]} 25. c5 {[%emt 0:00:56]} Ba7 {[%emt 0:00:02]} 26. Kg2 {[%emt 0:01:08]} Nf6 {[%emt 0:00:43]} 27. Kf3 {[%emt 0:01:02]} Nd7 {[%emt 0:07:14]} 28. Nd4 {[%emt 0:00:52]} R8h6 {[%emt 0:00:09]} 29. Nf5 {[%emt 0:00:36]} Rh7 {[%emt 0:00:06]} 30. g4 {[%emt 0:01:35]} Rh2 {[%emt 0:00:36]} 31. a3 {[%emt 0:00:43]} R7h3+ {[%emt 0:02:32]} 32. Ke2 {[%emt 0:00:09]} Nf6 {[%emt 0:00:34]} 33. Rc4 {[%emt 0:00:55]} Nxg4 {[%emt 0:00:52]} 34. Rg1 {[%emt 0:01:18]} Rxd3 {[%emt 0:01:38]} 35. Rxg4 {[%emt 0:00:05]} Rb3 {[%emt 0:00:05]} 36. Rc2 {[%emt 0:00:25]} Rb5 {[%emt 0:01:04]} 37. Nxg7+ {[%emt 0:01:15]} Kf8 {[%emt 0:01:11]} 38. b4 {[%emt 0:00:12]} axb4 {[%emt 0:00:18]} 39. axb4 {[%emt 0:00:07]} Rxb4 {[%emt 0:00:04]} 40. Nf5 {[%emt 0:00:26]} f6 {[%emt 0:02:49]} 41. Ra2 {[%emt 0:04:00]} Rb7 {[%emt 0:08:37]} 42. Nd4 {[%emt 0:03:42]} Kf7 {[%emt 0:09:10]} 43. Nxc6 {[%emt 0:01:51]} Bxc5 {[%emt 0:00:10]} 44. Nd8+ {[%emt 0:00:07]} Ke7 {[%emt 0:00:02]} 45. Rg7+ {[%emt 0:00:22]} Ke8 {[%emt 0:01:39]} 46. Nxb7 {[%emt 0:01:44]} Rxf2+ {[%emt 0:00:07]} 47. Kd3 {[%emt 0:00:04]} Rxa2 {[%emt 0:00:05]} 48. Nxc5 {[%emt 0:00:02]} Ra7 {[%emt 0:01:43]} 49. Kd4 {[%emt 0:00:27]} 1-0